Workbook

Sheet Лист1
A1: ФИО | F1: должность
B2: дата увольнения | F2: рост | G2: 185 | H2: одежда | I2: 52(L) | J2: обувь | K2: 44
A4: № п/п | B4: Наименование СИЗ | C4: н/н | D4: цена | E4: дата выдачи | F4: срок носки, мес | G4: дата списания | H4: износ | I4: стоимость | J4: 20% | K4: Итого с НДС | L4: Закупка
A5: 1 | B5: Футболка СПОРТ-К трикотажная оранжевого цвета | C5: 6100000219 | D5: 150 | E5: 2020-06-13 | F5: 6 | G5: =E5+F5*30 -> 2020-12-10 | H5: =1-IF(ISBLANK($D$3),(TODAY()-Table13129130[[#This Row],[дата выдачи]])/(Table13129130[[#This Row],[дата списания]]-Table13129130[[#This Row],[дата выдачи]]),($D$3-Table13129130[[#This Row],[дата выдачи]])/(Table13129130[[#This Row],[дата списания]]-Table13129130[[#This Row],[дата выдачи]])) -> 0.05555555556 | I5: =Table13129130[[#This Row],[цена]]*Table13129130[[#This Row],[износ]] -> 8.333333333 | J5: =Table13129130[[#This Row],[стоимость]]*Table13129130[[#Headers],[20%]] -> 1.666666667 | K5: =I5+J5 -> 10 | L5: =IF(K5<0,"1","0") -> 0
A6: 2 | B6: Очки с непрямой вентиляцией закрытые УЛЬТРАВИЖИН | C6: 6100000177 | D6: 200 | E6: 2020-06-14 | F6: 3 | G6: 2020-09-12 | H6: =1-IF(ISBLANK($D$3),(TODAY()-Table13129130[[#This Row],[дата выдачи]])/(Table13129130[[#This Row],[дата списания]]-Table13129130[[#This Row],[дата выдачи]]),($D$3-Table13129130[[#This Row],[дата выдачи]])/(Table13129130[[#This Row],[дата списания]]-Table13129130[[#This Row],[дата выдачи]])) -> -0.8777777778 | I6: =Table13129130[[#This Row],[цена]]*Table13129130[[#This Row],[износ]] -> -175.5555556 | J6: =Table13129130[[#This Row],[стоимость]]*Table13129130[[#Headers],[20%]] -> -35.11111111 | K6: =I6+J6 -> -210.6666667 | L6: =IF(K6<0,"1","0") -> 1
A7: 3 | B7: Костюм мужской летний Инженер | C7: 6100000217 | D7: 1500 | E7: 2020-06-15 | F7: 12 | G7: 2021-06-10 | H7: =1-IF(ISBLANK($D$3),(TODAY()-Table13129130[[#This Row],[дата выдачи]])/(Table13129130[[#This Row],[дата списания]]-Table13129130[[#This Row],[дата выдачи]]),($D$3-Table13129130[[#This Row],[дата выдачи]])/(Table13129130[[#This Row],[дата списания]]-Table13129130[[#This Row],[дата выдачи]])) -> 0.5333333333 | I7: =Table13129130[[#This Row],[цена]]*Table13129130[[#This Row],[износ]] -> 800 | J7: =Table13129130[[#This Row],[стоимость]]*Table13129130[[#Headers],[20%]] -> 160 | K7: 960 | L7: 0
A8: 4 | B8: Термостойкие перчатки 500C | C8: 6100000165 | D8: 750 | E8: 2020-06-16 | F8: 3 | G8: 2020-09-14 | H8: =1-IF(ISBLANK($D$3),(TODAY()-Table13129130[[#This Row],[дата выдачи]])/(Table13129130[[#This Row],[дата списания]]-Table13129130[[#This Row],[дата выдачи]]),($D$3-Table13129130[[#This Row],[дата выдачи]])/(Table13129130[[#This Row],[дата списания]]-Table13129130[[#This Row],[дата выдачи]])) -> -0.8555555556 | I8: =Table13129130[[#This Row],[цена]]*Table13129130[[#This Row],[износ]] -> -641.6666667 | J8: =Table13129130[[#This Row],[стоимость]]*Table13129130[[#Headers],[20%]] -> -128.3333333 | K8: -770 | L8: 1
A9: 5 | B9: Полуботинки HECKEL Маккросс 120-0076-01 | C9: 6100000225 | D9: 1850 | E9: 2020-06-17 | F9: 12 | G9: 2021-06-12 | H9: =1-IF(ISBLANK($D$3),(TODAY()-Table13129130[[#This Row],[дата выдачи]])/(Table13129130[[#This Row],[дата списания]]-Table13129130[[#This Row],[дата выдачи]]),($D$3-Table13129130[[#This Row],[дата выдачи]])/(Table13129130[[#This Row],[дата списания]]-Table13129130[[#This Row],[дата выдачи]])) -> 0.5388888889 | I9: =Table13129130[[#This Row],[цена]]*Table13129130[[#This Row],[износ]] -> 996.9444444 | J9: =Table13129130[[#This Row],[стоимость]]*Table13129130[[#Headers],[20%]] -> 199.3888889 | K9: 1196.333333 | L9: 0
A10: 6 | B10: Футболка СПОРТ-Д Код по каталогу 101-0032-01 | C10: 6100000220 | D10: 175 | E10: 2020-06-18 | F10: 6 | G10: 2020-12-15 | H10: =1-IF(ISBLANK($D$3),(TODAY()-Table13129130[[#This Row],[дата выдачи]])/(Table13129130[[#This Row],[дата списания]]-Table13129130[[#This Row],[дата выдачи]]),($D$3-Table13129130[[#This Row],[дата выдачи]])/(Table13129130[[#This Row],[дата списания]]-Table13129130[[#This Row],[дата выдачи]])) -> 0.08333333333 | I10: =Table13129130[[#This Row],[цена]]*Table13129130[[#This Row],[износ]] -> 14.58333333 | J10: =Table13129130[[#This Row],[стоимость]]*Table13129130[[#Headers],[20%]] -> 2.916666667 | K10: 17.5 | L10: 0
A11: 7 | B11: Нарукавник кевларовый | C11: 6100000173 | D11: 520 | E11: 2020-06-19 | F11: 3 | G11: 2020-09-17 | H11: =1-IF(ISBLANK($D$3),(TODAY()-Table13129130[[#This Row],[дата выдачи]])/(Table13129130[[#This Row],[дата списания]]-Table13129130[[#This Row],[дата выдачи]]),($D$3-Table13129130[[#This Row],[дата выдачи]])/(Table13129130[[#This Row],[дата списания]]-Table13129130[[#This Row],[дата выдачи]])) -> -0.8222222222 | I11: =Table13129130[[#This Row],[цена]]*Table13129130[[#This Row],[износ]] -> -427.5555556 | J11: =Table13129130[[#This Row],[стоимость]]*Table13129130[[#Headers],[20%]] -> -85.51111111 | K11: -513.0666667 | L11: 1
A12: 8 | B12: Polysafe FTK/KW Термостойкие перчатки 100 С | C12: 6100000169 | D12: 470 | E12: 2020-06-20 | F12: 3 | G12: 2020-09-18 | H12: =1-IF(ISBLANK($D$3),(TODAY()-Table13129130[[#This Row],[дата выдачи]])/(Table13129130[[#This Row],[дата списания]]-Table13129130[[#This Row],[дата выдачи]]),($D$3-Table13129130[[#This Row],[дата выдачи]])/(Table13129130[[#This Row],[дата списания]]-Table13129130[[#This Row],[дата выдачи]])) -> -0.8111111111 | I12: =Table13129130[[#This Row],[цена]]*Table13129130[[#This Row],[износ]] -> -381.2222222 | J12: =Table13129130[[#This Row],[стоимость]]*Table13129130[[#Headers],[20%]] -> -76.24444444 | K12: -457.4666667 | L12: 1
A13: 9 | B13: B42/NMX/NP/SS 1363 Термостойкий шлем | C13: 6100000167 | D13: 695 | E13: 2020-06-21 | F13: 6 | G13: 2020-12-18 | H13: =1-IF(ISBLANK($D$3),(TODAY()-Table13129130[[#This Row],[дата выдачи]])/(Table13129130[[#This Row],[дата списания]]-Table13129130[[#This Row],[дата выдачи]]),($D$3-Table13129130[[#This Row],[дата выдачи]])/(Table13129130[[#This Row],[дата списания]]-Table13129130[[#This Row],[дата выдачи]])) -> 0.1 | I13: =Table13129130[[#This Row],[цена]]*Table13129130[[#This Row],[износ]] -> 69.5 | J13: =Table13129130[[#This Row],[стоимость]]*Table13129130[[#Headers],[20%]] -> 13.9 | K13: 83.4 | L13: 0
A14: 10 | B14: Куртка утеплённая CERVA Аллин | C14: 6100000222 | D14: 2750 | E14: 2020-06-22 | F14: 36 | G14: 2023-06-07 | H14: =1-IF(ISBLANK($D$3),(TODAY()-Table13129130[[#This Row],[дата выдачи]])/(Table13129130[[#This Row],[дата списания]]-Table13129130[[#This Row],[дата выдачи]]),($D$3-Table13129130[[#This Row],[дата выдачи]])/(Table13129130[[#This Row],[дата списания]]-Table13129130[[#This Row],[дата выдачи]])) -> 0.8509259259 | I14: =Table13129130[[#This Row],[цена]]*Table13129130[[#This Row],[износ]] -> 2340.046296 | J14: =Table13129130[[#This Row],[стоимость]]*Table13129130[[#Headers],[20%]] -> 468.0092593 | K14: 2808.055556 | L14: 0
A15: 11 | B15: Очки UVEX АЙ-ВО 9160 285 | C15: 6100000208 | D15: 200 | E15: 2020-06-23 | F15: 3 | G15: 2020-09-21 | H15: =1-IF(ISBLANK($D$3),(TODAY()-Table13129130[[#This Row],[дата выдачи]])/(Table13129130[[#This Row],[дата списания]]-Table13129130[[#This Row],[дата выдачи]]),($D$3-Table13129130[[#This Row],[дата выдачи]])/(Table13129130[[#This Row],[дата списания]]-Table13129130[[#This Row],[дата выдачи]])) -> -0.7777777778 | I15: =Table13129130[[#This Row],[цена]]*Table13129130[[#This Row],[износ]] -> -155.5555556 | J15: =Table13129130[[#This Row],[стоимость]]*Table13129130[[#Headers],[20%]] -> -31.11111111 | K15: -186.6666667 | L15: 1
A16: 12 | B16: Каска - цвет синий | C16: 6100000203 | D16: 800 | E16: 2020-06-24 | F16: 3 | G16: 2020-09-22 | H16: =1-IF(ISBLANK($D$3),(TODAY()-Table13129130[[#This Row],[дата выдачи]])/(Table13129130[[#This Row],[дата списания]]-Table13129130[[#This Row],[дата выдачи]]),($D$3-Table13129130[[#This Row],[дата выдачи]])/(Table13129130[[#This Row],[дата списания]]-Table13129130[[#This Row],[дата выдачи]])) -> -0.7666666667 | I16: =Table13129130[[#This Row],[цена]]*Table13129130[[#This Row],[износ]] -> -613.3333333 | J16: =Table13129130[[#This Row],[стоимость]]*Table13129130[[#Headers],[20%]] -> -122.6666667 | K16: -736 | L16: 1
A17: 13 | B17: Armatex Jacket PKJ/179 Жакет от порезов | C17: 6100000168 | D17: 1500 | E17: 2020-06-25 | F17: 12 | G17: 2021-06-20 | H17: =1-IF(ISBLANK($D$3),(TODAY()-Table13129130[[#This Row],[дата выдачи]])/(Table13129130[[#This Row],[дата списания]]-Table13129130[[#This Row],[дата выдачи]]),($D$3-Table13129130[[#This Row],[дата выдачи]])/(Table13129130[[#This Row],[дата списания]]-Table13129130[[#This Row],[дата выдачи]])) -> 0.5611111111 | I17: =Table13129130[[#This Row],[цена]]*Table13129130[[#This Row],[износ]] -> 841.6666667 | J17: =Table13129130[[#This Row],[стоимость]]*Table13129130[[#Headers],[20%]] -> 168.3333333 | K17: 1010 | L17: 0
A18: 14 | B18: Перчатки от порезов, класс 5 | C18: 6100000172 | D18: 750 | E18: 2020-06-26 | F18: 2 | G18: 2020-08-25 | H18: =1-IF(ISBLANK($D$3),(TODAY()-Table13129130[[#This Row],[дата выдачи]])/(Table13129130[[#This Row],[дата списания]]-Table13129130[[#This Row],[дата выдачи]]),($D$3-Table13129130[[#This Row],[дата выдачи]])/(Table13129130[[#This Row],[дата списания]]-Table13129130[[#This Row],[дата выдачи]])) -> -1.616666667 | I18: =Table13129130[[#This Row],[цена]]*Table13129130[[#This Row],[износ]] -> -1212.5 | J18: =Table13129130[[#This Row],[стоимость]]*Table13129130[[#Headers],[20%]] -> -242.5 | K18: -1455 | L18: 1
A19: 15 | B19: Противошумные вкладыши многоразовые 3M 1271 | C19: 6100000209 | D19: 25 | E19: 2020-06-27 | F19: 1 | G19: 2020-07-27 | H19: =1-IF(ISBLANK($D$3),(TODAY()-Table13129130[[#This Row],[дата выдачи]])/(Table13129130[[#This Row],[дата списания]]-Table13129130[[#This Row],[дата выдачи]]),($D$3-Table13129130[[#This Row],[дата выдачи]])/(Table13129130[[#This Row],[дата списания]]-Table13129130[[#This Row],[дата выдачи]])) -> -4.2 | I19: =Table13129130[[#This Row],[цена]]*Table13129130[[#This Row],[износ]] -> -105 | J19: =Table13129130[[#This Row],[стоимость]]*Table13129130[[#Headers],[20%]] -> -21 | K19: -126 | L19: 1
A20: 16 | B20: Перчатки трикотажные с ПВХ | C20: 6100000181 | D20: 25 | E20: 2020-06-28 | F20: 1 | G20: 2020-07-28 | H20: =1-IF(ISBLANK($D$3),(TODAY()-Table13129130[[#This Row],[дата выдачи]])/(Table13129130[[#This Row],[дата списания]]-Table13129130[[#This Row],[дата выдачи]]),($D$3-Table13129130[[#This Row],[дата выдачи]])/(Table13129130[[#This Row],[дата списания]]-Table13129130[[#This Row],[дата выдачи]])) -> -4.166666667 | I20: =Table13129130[[#This Row],[цена]]*Table13129130[[#This Row],[износ]] -> -104.1666667 | J20: =Table13129130[[#This Row],[стоимость]]*Table13129130[[#Headers],[20%]] -> -20.83333333 | K20: -125 | L20: 1
A21: 17 | B21: Полуботинки Мастер | C21: 6100002028 | D21: 1300 | E21: 2020-06-29 | F21: 12 | G21: 2021-06-24 | H21: =1-IF(ISBLANK($D$3),(TODAY()-Table13129130[[#This Row],[дата выдачи]])/(Table13129130[[#This Row],[дата списания]]-Table13129130[[#This Row],[дата выдачи]]),($D$3-Table13129130[[#This Row],[дата выдачи]])/(Table13129130[[#This Row],[дата списания]]-Table13129130[[#This Row],[дата выдачи]])) -> 0.5722222222 | I21: =Table13129130[[#This Row],[цена]]*Table13129130[[#This Row],[износ]] -> 743.8888889 | J21: =Table13129130[[#This Row],[стоимость]]*Table13129130[[#Headers],[20%]] -> 148.7777778 | K21: 892.6666667 | L21: 0
A22: 19 | B22: Перчатки с кожанными вставками | C22: 6100000183 | D22: 250 | E22: 2020-06-30 | F22: 6 | G22: 2020-12-27 | H22: =1-IF(ISBLANK($D$3),(TODAY()-Table13129130[[#This Row],[дата выдачи]])/(Table13129130[[#This Row],[дата списания]]-Table13129130[[#This Row],[дата выдачи]]),($D$3-Table13129130[[#This Row],[дата выдачи]])/(Table13129130[[#This Row],[дата списания]]-Table13129130[[#This Row],[дата выдачи]])) -> 0.15 | I22: =Table13129130[[#This Row],[цена]]*Table13129130[[#This Row],[износ]] -> 37.5 | J22: =Table13129130[[#This Row],[стоимость]]*Table13129130[[#Headers],[20%]] -> 7.5 | K22: 45 | L22: 0
A23: 20 | B23: Рукавицы рабочие суконные G26 | C23: 6100000182 | D23: 30 | E23: 2020-07-01 | F23: 6 | G23: 2020-12-28 | H23: =1-IF(ISBLANK($D$3),(TODAY()-Table13129130[[#This Row],[дата выдачи]])/(Table13129130[[#This Row],[дата списания]]-Table13129130[[#This Row],[дата выдачи]]),($D$3-Table13129130[[#This Row],[дата выдачи]])/(Table13129130[[#This Row],[дата списания]]-Table13129130[[#This Row],[дата выдачи]])) -> 0.1555555556 | I23: =Table13129130[[#This Row],[цена]]*Table13129130[[#This Row],[износ]] -> 4.666666667 | J23: =Table13129130[[#This Row],[стоимость]]*Table13129130[[#Headers],[20%]] -> 0.9333333333 | K23: 5.6 | L23: 0
A25: ИТОГО: | K25: =SUMIF(K9:K24,"<500000",K9:K24) -> 2459.355556
